Cogmind - Beta 16 *** ADVENTURER MODE // 2025.11.09 @ 01:10:24 Player: Electroid Result: Destroyed by exploding Fusion Modulator Performance ------------- Evolutions (0) 0 Regions Visited (1) 200 Robots Destroyed (15) 75 Value Destroyed (338) 338 Prototype IDs (3) 60 Alien Tech Used (0) 0 Bonus (0) 0 TOTAL SCORE: 673 Bonus ------- None Cogmind --------- Core Integrity 0/250 Matter 300/300 Energy 98/100 System Corruption 0% Temperature Cool (13) Movement Walking (260) Ox2 Location -10/Materials Parts ------- > --- POWER (1) -------- (None) > --- PROPULSION (2) --- Aluminum Leg > --- UTILITY (2) ------ Large Storage Unit > --- WEAPON (2) ------- Light Assault Rifle Hammer > --- INVENTORY (15) --- Power Shielding Hammer Peak State ------------ > --- POWER ------------ Light Nuclear Core > --- PROPULSION ------- Aluminum Leg Aluminum Leg > --- UTILITY ---------- Large Storage Unit > --- WEAPON ----------- Light Assault Rifle Hammer > --- INVENTORY -------- Power Shielding Light Assault Rifle Hammer [Rating: 8] Favorites ----------- Power Light Ion Engine Engine Light Ion Engine Power Core Light Nuclear Core Propulsion Aluminum Leg Leg Aluminum Leg Utility Large Storage Unit Storage Large Storage Unit Weapon Light Assault Rifle Ballistic Gun Light Assault Rifle Impact Weapon Hammer Build | -11 -10 ------- Run | Yrd Mat Slots Evolved . | . . Power . | . . Propulsion . | . . Utility . | . . Weapon . | . . Parts Attached 11 | 5 6 Power 2 | 1 1 Engine 1 | 1 . Core 1 | . 1 Reactor . | . . Propulsion 3 | 2 1 Treads . | . . Leg 3 | 2 1 Wheel . | . . Hover . | . . Flight . | . . Utility 2 | 1 1 Device . | . . Storage 2 | 1 1 Processor . | . . Hackware . | . . Protection . | . . Artifact . | . . Weapon 4 | 1 3 Energy Gun . | . . Energy Cannon . | . . Ballistic Gun 2 | 1 1 Ballistic Cannon . | . . Launcher . | . . Special Weapon . | . . Impact Weapon 2 | . 2 Slashing Weapon . | . . Piercing Weapon . | . . Special Melee Weapon . | . . Unidentified Prototypes . | . . Parts Lost 5 | . 5 Power 2 | . 2 Propulsion 2 | . 2 Utility . | . . Weapon 1 | . 1 Highest Loss Streak 2 | . 2 To Critical Strikes 1 | . 1 Average Backups 2 | . 2 Power . | . . Propulsion . | . . Utility . | . . Weapon 1 | . 1 Tool/Special . | . . Unused Backups 1 | . 1 Power . | . . Propulsion . | . . Utility 1 | . 1 Weapon . | . . Tool/Special . | . . Average Slot Usage (%) 78 | . 78 Engine 8 | . 8 Core 3 | . 3 Leg 23 | . 23 Storage 14 | . 14 Ballistic Gun 14 | . 14 Impact Weapon 13 | . 13 Peak Build Rating 8 | 5 8 Average Rating 5 | 3 5 On Entrance 2 | . 5 Avg Prop Armor Cover (%) . | . . Naked Turns . | . . Heaviest Build 28 | 9 28 Greatest Support 20 | 20 20 Greatest Overweight (x) 2 | . 2 Average Overweight (x) . | . . Largest Inventory Capacity 15 | 8 15 Average Capacity 13 | 6 13 Most Carried 5 | 4 5 Average Carried 2 | . 2 Final Capacity 15 | 8 15 Final Carried 2 | . 2 Class Distribution -------------------- 100% | Mutant Dominant Class ---------------- Mutant | -10/Materials Resources | -11 -10 ----------- Run | Yrd Mat Matter Collected 370 | 241 129 Remotely . | . . Salvage Created 390 | . 390 Parts 31 | . 31 Haulers Intercepted . | . . Recyclers Shooed 1 | . 1 Parts Field Recycled . | . . Retrieved Matter . | . . Parts Self-Destructed . | . . Prevented . | . . Parts Restored . | . . Kills | -11 -10 ------- Run | Yrd Mat Combat Hostiles Destroyed 12 | . 12 Guns 12 | . 12 Classes Destroyed 3 | . 3 Watcher 3 | . 3 Swarmer 6 | . 6 Grunt 6 | . 6 Best Kill Streak 3 | . 3 Combat Bots Only 3 | . 3 Max Kills in Single Turn 1 | . 1 Gunslinging . | . . Exploded . | . . Melee . | . . Uniques/NPCs Destroyed . | . . Combat | -11 -10 -------- Run | Yrd Mat Hostile Shots Fired 113 | . 113 Missed 26 | . 26 Hits 87 | . 87 Projectile 87 | . 87 Critical Strikes 2 | . 2 Damage Taken 763 | . 763 Core 264 | . 264 Absorbed by Shields . | . . Ignored by Resistances 241 | . 241 Core Remaining (%) 100 | 100 . Volleys Fired 75 | . 75 Largest 1 | . 1 Hottest 20 | . 20 Shots Fired 75 | . 75 Gun 75 | . 75 Cannon . | . . Launcher . | . . Special . | . . Kinetic 75 | . 75 Thermal . | . . Explosive . | . . Electromagnetic . | . . Robot Hit Streak 19 | . 19 Robot Miss Streak 4 | . 4 Penetration Max . | . . Secondary Targets . | . . Shots Hit Robots 56 | . 56 Core Hits 34 | . 34 Critical Kills . | . . Critical Parts Destroyed . | . . Critical Strikes . | . . Melee Attacks . | . . Impact . | . . Slashing . | . . Piercing . | . . Sneak Attacks . | . . Combat Hostiles . | . . Follow-up Attacks . | . . Damage Inflicted 485 | . 485 Guns 485 | . 485 Cannons . | . . Explosions . | . . Melee . | . . Ramming . | . . Kinetic 485 | . 485 Thermal . | . . Explosive . | . . Electromagnetic . | . . Impact . | . . Slashing . | . . Piercing . | . . Highest Corruption . | . . Average Corruption . | . . Corruption Purged . | . . Corruption Blocked . | . . Overload Shots . | . . Overflow Damage . | . . Projectiles . | . . Explosions . | . . Melee . | . . Knockbacks . | . . Impact . | . . Kinetic . | . . Secondary . | . . Self-Inflicted Damage . | . . Shots . | . . Rammed . | . . Targets Rammed . | . . Kicked . | . . Crushed . | . . Highest Temperature 25 | . 25 Average Temperature 5 | . 5 Received Heat Transfer 306 | . 306 Siege Activations . | . . Martial Activations . | . . Shielding Activations . | . . Robots Disrupted . | . . Combat Hostiles . | . . Robots Corrupted . | . . Combat Hostiles . | . . Parts Fried . | . . Impact Corruptions . | . . Robots Melted . | . . Combat Hostiles . | . . Parts Melted . | . . Heat Transferred . | . . Parts Sabotaged . | . . Parts Stolen . | . . Parts Stripped . | . . Power Chain Reactions . | . . Alert | -11 -10 ------- Run | Yrd Mat Maximum Alert Level . | . . Low Security (%) 100 | 100 100 Level 1 . | . . Level 2 . | . . Level 3 . | . . Level 4 . | . . Level 5 . | . . High Security . | . . Max Security . | . . Peak Influence 100 | . 100 Initial . | . . Average 39 | . 42 Influence Increases 351 | . 351 Destroy 0b10 Robot/C 240 | . 240 Destroy 0b10 Robot/NC 15 | . 15 Destroy Leader 56 | . 56 Successful Hack 10 | . 10 Lose Combat Pursuer 30 | . 30 Influence Decreases 274 | . 274 Time Decay 224 | . 224 Lost Part 50 | . 50 Squads Dispatched 1 | . 1 Investigation 1 | . 1 Extermination . | . . Reinforcement . | . . Assault . | . . Garrison . | . . Intercept . | . . Searches Triggered . | . . Construction Impeded . | . . Haulers Reinforced . | . . Active Scanning Responses . | . . Cargo Convoy Interrupts . | . . Stealth | -11 -10 --------- Run | Yrd Mat Distress Signals 2 | . 2 Communications Jammed . | . . Distress Signals . | . . Times Spotted 20 | . 20 Peak Tracking Total 6 | . 6 Tactical Retreats 1 | . 1 Traps | -11 -10 ------- Run | Yrd Mat Traps Triggered 2 | . 2 Indirectly . | . . Trap Hack Attempts . | . . Triggered . | . . Disarmed . | . . Reprogrammed . | . . Reused . | . . Traps Extracted . | . . Installed . | . . Triggered . | . . Machines | -11 -10 ---------- Run | Yrd Mat Machines Disabled . | . . Max in Single Turn . | . . Machines Repaired . | . . Machines Dismantled . | . . Machines Sabotaged . | . . Overloaded Fab Kills . | . . Hacking | -11 -10 --------- Run | Yrd Mat Machines Accessed 3 | . 3 Terminals 3 | . 3 Fabricators . | . . Repair Stations . | . . Recycling Units . | . . Scanalyzers . | . . Garrison Access . | . . Total Hacks 10 | . 10 Successful 5 | . 5 Failed 5 | . 5 Catastrophic 2 | . 2 Database Lockouts . | . . Manual . | . . Terminals 10 | . 10 Fabricators . | . . Repair Stations . | . . Recycling Units . | . . Scanalyzers . | . . Garrison Access . | . . Terminal Hacks 5 | . 5 Record 3 | . 3 Prototype ID Bank 2 | . 2 Fabricator Hacks . | . . Repair Station Hacks . | . . Recycling Unit Hacks . | . . Scanalyzer . | . . Garrison Access Hacks . | . . Unauthorized Hacks . | . . Terminals . | . . Fabricators . | . . Repair Stations . | . . Recycling Units . | . . Scanalyzers . | . . Garrison Access . | . . Data Cores Recovered . | . . Used . | . . Hacking Detections 1 | . 1 Full Trace Events 1 | . 1 Feedback Events . | . . Feedback Blocked . | . . Robot Schematics Acquired . | . . Robots Built . | . . Authchips . | . . Time . | . . Total Robot Build Rating . | . . Part Schematics Acquired . | . . Parts Built . | . . Authchips . | . . Time . | . . Total Part Build Rating . | . . Part Studies Acquired . | . . Parts Repaired . | . . Time . | . . Parts Recycled . | . . Recycled Matter . | . . Retrieved Matter . | . . Retrieved Components . | . . Parts Scanalyzed . | . . Part Schematics Acquired . | . . Parts Damaged . | . . Bothacking | -11 -10 ------------ Run | Yrd Mat Used RIF Installer . | . . Robots Hacked . | . . Non-combat . | . . Combat . | . . Robot Hacks Applied . | . . Relay Couplers Released . | . . Fabnet Peak Effective % . | . . Robots Rewired . | . . Allies Hacked . | . . Hacks Repelled . | . . Allies | -11 -10 -------- Run | Yrd Mat Total Allies . | . . Largest Group . | . . Highest-Rated Group . | . . Highest-Rated Ally . | . . Total Orders . | . . Ally Attacks . | . . Total Damage . | . . Kills . | . . Allies Corrupted . | . . Allies Melted . | . . Intel | -11 -10 ------- Run | Yrd Mat Active Infowar (turns) . | . . Robot Analysis Total . | . . Derelict Logs Recovered . | . . Drone Launches . | . . Drone Recoveries . | . . Exploration | -11 -10 ------------- Run | Yrd Mat Turns Passed 616 | 47 569 Spaces Moved 256 | 37 219 Core 10 | 10 . Treads . | . . Legs 246 | 27 219 Wheels . | . . Hover . | . . Flight . | . . Fastest Speed 50 | 50 120 Average Speed 176 | 101 188 Slowest Speed 260 | 120 260 Overloaded Moves . | . . Propulsion Burnouts . | . . Robots Hopped . | . . Potential Cave-ins . | . . Cave-ins Triggered . | . . Exploration Rate (%) 25 | 3 47 Regions Visited 1 Branch Regions . Pre-discovered Areas . | . . Known Exits Taken . | . . Unknown Exits Taken 1 | 1 . Scrap Searched . | . . Spaces Dug . | . . Terrain Destroyed . | . . Melee . | . . Projectile . | . . AOE . | . . Terrain Rammed . | . . Walls Destroyed . | . . Machines Disabled . | . . Actions | -11 -10 --------- Run | Yrd Mat Total 362 | 46 316 Wait 7 | . 7 Move 255 | 36 219 Hop . | . . Pick Up 12 | 5 7 Fast Attach . | . . Attach 10 | 5 5 Detach . | . . Swap 2 | . 2 Drop 1 | . 1 Fire 75 | . 75 Melee . | . . Ram . | . . Kick . | . . Crush . | . . Escape Stasis . | . . Rewire . | . . Trap . | . . Miscellaneous . | . . Route ------- -11/Scrapyard -10/Materials (discovered 1 exit: [*Min]) History --------- Turn | Location | Event 6 | -11/Scrapyard | Discovered new exit (range 16) 48 | -11/Scrapyard | Entered Materials 317 | -10/Materials | Build established: Mutant 342 | -10/Materials | Discovered new exit (range 13) 400 | -10/Materials | Core integrity fell below 50% 617 | -10/Materials | Destroyed by exploding Fusion Modulator Last Messages --------------- R-06 Scavenger collects Flight Unit. K-01 Serf collects debris. Acquired 1 matter. R-06 Scavenger collects Flight Unit. S-10 Pest destroyed. K-01 Serf collects debris. Acquired 1 matter. R-06 Scavenger collects Lgt. Assault Rifle. K-01 Serf collects debris. K-01 Serf cleans the Fusion Modulator. R-06 Scavenger collects Lgt. Assault Rifle. K-01 Serf collects debris. R-06 Scavenger collects Flight Unit. K-01 Serf cleans the Fusion Modulator. K-01 Serf collects debris. Triggered EMP Trap. A bubble of electromagnetic force engulfs the area. Fusion Modulator explodes. [Achievement: First Step to Greatness] Map ----- +----------------------------------------------------+ | ???# # % ##### ####?????????# # | | ???# # # #????????# #### | | ??????"" """ +% T " + ?????# #??? | | ??????"" """ # # #???# #??? | | ??????"" """ # ##### ########?????# #??? | | ?????? ## ##???## ##????????????# #??? | | ????? ! ## #?????# ############### #??? | | ????? ## #?????# #??? | | ?????########## #?????# #??? | | ?????????????## ####??# #??? | | ?????????????# """#??######+############ #??? | | ?????????????# % "#???# #??????# #??? | | ?????????????# !"#???# T #??????# #??? | | ?????????????# < ""#???# #??????# #??? | | ?????????????# !"#???# #??????# #??? | | ?????????????# "#???# """ """ #??????? #??? | | ?????????????# """#???# """ """ #???????^ #??? | | ?????????????## ####???# """ """ #??????? #??? | | ??????????????#a a######?# #??????? #??? | | ??????????????# ^ ################???? #??? | | ??????????????# [ ???? #??? | | ??????????????# t^ k^ ??? +??? | | ??????????????# """ !== ?????????? | | ??????? ???# """ !== #???????????? | | ???????? # """ === #???????????? | | ????????? /r @ #???????????? | | ??????????????# r= #???????????? | | ??????????????# """ %""" """ """ #???????????? | | ??????????????# """k """ """ """??????????????? | | ??????????????# """ """ """ ""???????????????? | | ??????????????# ???????????????? | | ????????????? ? ???????????????? | | ?????????????# """ !?????????????????? | | ?????????????# == """ ????????????????? | | ?????????????# = """ ????????????????? | | ?????????????# ?? ????????????????? | | ?????????????/ [ ???????????????????? | | ?????????????# #####+#######"T??????????????????? | | ?????????????# ??????????????"??????????????????? | | ?????????????# ??????????????????????????????????? | | ?????????????????????????????????????????????????? | | ?????????????????????????????????????????????????? | | ?????????????????????????????????????????????????? | | ?????????????????????????????????????????????????? | | ?????????????????????????????????????????????????? | | ?????????????????????????????????????????????????? | | ?????????????????????????????????????????????????? | | ?????????????????????????????????????????????????? | | ?????????????????????????????????????????????????? | | ?????????????????????????????????????????????????? | +----------------------------------------------------+ Best States ------------- Heat Dissipation 25 Energy Generation 14 Energy Capacity 160 Matter Stores 300 Matter Capacity 300 Sight Range 16 Terrain Scan Density 10 Resistance: KI 20 Resistance: TH 20 Resistance: EX 20 Resistance: EM 20 Resistance: I 20 Resistance: S 20 Resistance: P 20 Evasion (%) 55 Offensive Hacking 10 Item Schematics ----------------- None Robot Schematics ------------------ None Fabricated ------------ Nothing Repaired ---------- Nothing Studied --------- None Alien Tech Used ----------------- None Achievements -------------- First Step to Greatness Challenges ------------ None Game ------ Seed DecoderGravitonSheargun Manual? 0 Play Time 00:07:49 Cumulative 2.9 hours Start 2025.11.09 @ 01:03:43 End 2025.11.09 @ 01:10:24 Sessions 1 Manual Loads 0 Difficulty Adventurer Special Mode None Game No. 6 Rogue 0 Adventurer 6 Explorer 0 Win Type - Total 0 Types 0/0/0/0/0/0/0/0/0/0 Lore% 2 Gallery% 10 Achievement% 9 Wizard Run 0 Options --------- Layout 1 ASCII 0 Keyboard 0 Movement Mouse Keybinds 0 Fullscreen 2 Font 32/SmallcapsGlow Map View 50x35 Zoom Use 0% Tactical HUD 0 Map Filters NONE Filters NONE Steam 1 RUN: 0139fbff-82f5-4c10-ac79-1490731e6b1c